[Event "Early-Titled-Tuesday-Blitz-April-23-2024"]
[Site "Chess.com"]
[Date "2024.04.23"]
[Round "4"]
[White "Navyblue1"]
[Black "Kyrko_Gamba"]
[Result "1/2-1/2"]
[WhiteElo "2233"]
[BlackElo "2428"]
[TimeControl "180+1"]
[EndTime "8:39:31 PDT"]
[Termination "Game drawn by repetition"]

1. d4 {[%clk 0:03:00.9]} 1... Nf6 {[%clk 0:02:59.2]} 2. c4 {[%clk 0:03:00.6]}
2... b6 {[%clk 0:02:56.2]} 3. Nf3 {[%clk 0:02:52.3]} 3... Bb7 {[%clk 0:02:56.1]}
4. g3 {[%clk 0:02:53]} 4... e6 {[%clk 0:02:54.4]} 5. Bg2 {[%clk 0:02:53]} 5...
Bb4+ {[%clk 0:02:52.5]} 6. Bd2 {[%clk 0:02:52.3]} 6... Be7 {[%clk 0:02:50.1]} 7.
O-O {[%clk 0:02:51]} 7... O-O {[%clk 0:02:50.6]} 8. Nc3 {[%clk 0:02:50]} 8... c5
{[%clk 0:02:50.1]} 9. dxc5 {[%clk 0:02:45.1]} 9... Bxc5 {[%clk 0:02:49.2]} 10.
a3 {[%clk 0:02:31.4]} 10... d5 {[%clk 0:02:48.9]} 11. cxd5 {[%clk 0:02:29.9]}
11... Nxd5 {[%clk 0:02:48.2]} 12. Nxd5 {[%clk 0:02:27.4]} 12... Bxd5 {[%clk
0:02:47.3]} 13. Bc3 {[%clk 0:02:26.2]} 13... Nd7 {[%clk 0:02:40]} 14. Qd2 {[%clk
0:02:22.4]} 14... Nf6 {[%clk 0:02:32.3]} 15. b4 {[%clk 0:02:19.5]} 15... Ne4
{[%clk 0:02:30.3]} 16. Qb2 {[%clk 0:02:14.6]} 16... Nxc3 {[%clk 0:02:23.9]} 17.
Qxc3 {[%clk 0:02:14.5]} 17... Be7 {[%clk 0:02:23.2]} 18. Rac1 {[%clk 0:02:08.8]}
18... Rc8 {[%clk 0:02:21.3]} 19. Qd3 {[%clk 0:02:07.3]} 19... a5 {[%clk
0:02:07.8]} 20. Qb5 {[%clk 0:01:44.1]} 20... axb4 {[%clk 0:02:03.7]} 21. axb4
{[%clk 0:01:42.9]} 21... Rxc1 {[%clk 0:01:56.7]} 22. Rxc1 {[%clk 0:01:42.1]}
22... Qd6 {[%clk 0:01:57.3]} 23. Rb1 {[%clk 0:00:48.7]} 23... Be4 {[%clk
0:01:53.1]} 24. Rc1 {[%clk 0:00:45.9]} 24... Qxb4 {[%clk 0:01:50.6]} 25. Qxb4
{[%clk 0:00:46.1]} 25... Bxb4 {[%clk 0:01:50.7]} 26. Nd4 {[%clk 0:00:46]} 26...
Bxg2 {[%clk 0:01:47.8]} 27. Kxg2 {[%clk 0:00:45.8]} 27... g6 {[%clk 0:01:41.8]}
28. Rc6 {[%clk 0:00:43.4]} 28... Rd8 {[%clk 0:01:38]} 29. Nb3 {[%clk 0:00:41.7]}
29... Rd6 {[%clk 0:01:36.8]} 30. Rc4 {[%clk 0:00:37.7]} 30... Be1 {[%clk
0:01:30.9]} 31. Rc1 {[%clk 0:00:34.1]} 31... Bb4 {[%clk 0:01:27.2]} 32. Rc4
{[%clk 0:00:33.3]} 32... Bd2 {[%clk 0:01:27.2]} 33. e3 {[%clk 0:00:31.2]} 33...
Kg7 {[%clk 0:01:17.2]} 34. Rc2 {[%clk 0:00:26.3]} 34... Bb4 {[%clk 0:01:12.5]}
35. Rc4 {[%clk 0:00:26.2]} 35... Ba5 {[%clk 0:01:10.2]} 36. Ra4 {[%clk
0:00:25.3]} 36... Rd5 {[%clk 0:01:09.7]} 37. Nxa5 {[%clk 0:00:20.6]} 37... bxa5
{[%clk 0:01:10.6]} 38. Rc4 {[%clk 0:00:20.3]} 38... Rb5 {[%clk 0:01:08.2]} 39.
Rc8 {[%clk 0:00:20.4]} 39... Rb4 {[%clk 0:01:06.6]} 40. Ra8 {[%clk 0:00:21]}
40... a4 {[%clk 0:01:06.6]} 41. Ra5 {[%clk 0:00:20.7]} 41... h6 {[%clk
0:01:06.3]} 42. h4 {[%clk 0:00:21.2]} 42... Kf6 {[%clk 0:01:05.2]} 43. Kf3
{[%clk 0:00:20.1]} 43... g5 {[%clk 0:01:05.2]} 44. hxg5+ {[%clk 0:00:20.4]}
44... hxg5 {[%clk 0:01:05.2]} 45. g4 {[%clk 0:00:18.6]} 45... Kg6 {[%clk
0:01:04.8]} 46. Kg3 {[%clk 0:00:18.9]} 46... Re4 {[%clk 0:00:57.1]} 47. Kf3
{[%clk 0:00:17.7]} 47... Rb4 {[%clk 0:00:47.3]} 48. Kg3 {[%clk 0:00:17.5]} 48...
Kf6 {[%clk 0:00:47.7]} 49. Kf3 {[%clk 0:00:17.6]} 49... Kg6 {[%clk 0:00:45]}
1/2-1/2

[Event "Early-Titled-Tuesday-Blitz-April-23-2024"]
[Site "Chess.com"]
[Date "2024.04.23"]
[Round "4"]
[White "MrVenky"]
[Black "familijatop71"]
[Result "1-0"]
[WhiteElo "2525"]
[BlackElo "2306"]
[TimeControl "180+1"]
[EndTime "8:39:32 PDT"]
[Termination "MrVenky won by resignation"]

1. Nf3 {[%clk 0:03:00.9]} 1... d5 {[%clk 0:02:59.1]} 2. g3 {[%clk 0:03:00.2]}
2... Nf6 {[%clk 0:02:59.5]} 3. Bg2 {[%clk 0:03:00.3]} 3... e6 {[%clk 0:03:00.2]}
4. d3 {[%clk 0:03:00.6]} 4... Be7 {[%clk 0:03:01]} 5. O-O {[%clk 0:03:00.6]}
5... O-O {[%clk 0:03:01.7]} 6. Nbd2 {[%clk 0:03:01.1]} 6... c5 {[%clk
0:03:01.9]} 7. e4 {[%clk 0:03:01.7]} 7... Nc6 {[%clk 0:03:01]} 8. Re1 {[%clk
0:03:01.2]} 8... b5 {[%clk 0:02:59.3]} 9. e5 {[%clk 0:03:00.6]} 9... Nd7 {[%clk
0:02:59.1]} 10. Nf1 {[%clk 0:03:01]} 10... a5 {[%clk 0:02:59.6]} 11. h4 {[%clk
0:02:58.9]} 11... b4 {[%clk 0:03:00]} 12. N1h2 {[%clk 0:02:57]} 12... a4 {[%clk
0:02:59.4]} 13. a3 {[%clk 0:02:54.3]} 13... bxa3 {[%clk 0:02:59.2]} 14. bxa3
{[%clk 0:02:53.7]} 14... Ba6 {[%clk 0:02:59.3]} 15. Bf4 {[%clk 0:02:52.5]} 15...
c4 {[%clk 0:02:58.9]} 16. d4 {[%clk 0:02:48]} 16... c3 {[%clk 0:02:58]} 17. Ng5
{[%clk 0:02:47.9]} 17... Qe8 {[%clk 0:02:53.1]} 18. Re3 {[%clk 0:02:31.8]} 18...
Nb6 {[%clk 0:02:05.7]} 19. Rxc3 {[%clk 0:02:30.2]} 19... Nc4 {[%clk 0:02:06.1]}
20. Qd3 {[%clk 0:02:22.7]} 20... Bxg5 {[%clk 0:02:04.1]} 21. hxg5 {[%clk
0:02:17]} 21... N4xe5 {[%clk 0:02:03.9]} 22. Qe3 {[%clk 0:02:12.9]} 22... Nc4
{[%clk 0:01:57.6]} 23. Rxc4 {[%clk 0:02:11.4]} 23... Bxc4 {[%clk 0:01:55.5]} 24.
Ng4 {[%clk 0:02:11.5]} 24... Ne7 {[%clk 0:01:33.1]} 25. Be5 {[%clk 0:01:59.5]}
25... Ng6 {[%clk 0:00:56.5]} 26. Bd6 {[%clk 0:01:59.1]} 26... Qb5 {[%clk
0:00:45.9]} 27. Bxf8 {[%clk 0:01:58.1]} 27... Rxf8 {[%clk 0:00:46.8]} 28. Bf3
{[%clk 0:01:48.6]} 28... Qb2 {[%clk 0:00:41.5]} 29. Rc1 {[%clk 0:01:45.2]} 29...
Rc8 {[%clk 0:00:36.5]} 30. Kg2 {[%clk 0:01:38.8]} 30... Ba6 {[%clk 0:00:33.3]}
31. Nf6+ {[%clk 0:01:06.5]} 31... gxf6 {[%clk 0:00:33]} 32. gxf6 {[%clk
0:01:06.6]} 32... Kf8 {[%clk 0:00:17.1]} 33. Rh1 {[%clk 0:01:05.5]} 33... Qxc2
{[%clk 0:00:11.9]} 34. Qh6+ {[%clk 0:01:02.8]} 34... Ke8 {[%clk 0:00:12]} 35.
Qxh7 {[%clk 0:01:01.1]} 35... Be2 {[%clk 0:00:09.4]} 36. Qg8+ {[%clk 0:00:52.7]}
36... Nf8 {[%clk 0:00:08.8]} 37. Qxf8+ {[%clk 0:00:52.9]} 37... Kd7 {[%clk
0:00:05]} 38. Qxf7+ {[%clk 0:00:52.4]} 38... Kc6 {[%clk 0:00:05.5]} 39. Qxe6+
{[%clk 0:00:52.5]} 39... Kb5 {[%clk 0:00:05.8]} 40. Qxe2+ {[%clk 0:00:52.5]} 1-0

[Event "Early-Titled-Tuesday-Blitz-April-23-2024"]
[Site "Chess.com"]
[Date "2024.04.23"]
[Round "4"]
[White "viktorskliarov"]
[Black "vladislavkovalev"]
[Result "0-1"]
[WhiteElo "2608"]
[BlackElo "2855"]
[TimeControl "180+1"]
[EndTime "8:39:33 PDT"]
[Termination "vladislavkovalev won by checkmate"]

1. e4 {[%clk 0:03:00.9]} 1... e5 {[%clk 0:03:00]} 2. Nc3 {[%clk 0:03:00.8]} 2...
Nf6 {[%clk 0:02:58.6]} 3. Bc4 {[%clk 0:02:59.7]} 3... Bb4 {[%clk 0:02:46.7]} 4.
Nge2 {[%clk 0:02:55.8]} 4... d6 {[%clk 0:02:37.3]} 5. a3 {[%clk 0:02:54.8]} 5...
Ba5 {[%clk 0:02:34.4]} 6. d3 {[%clk 0:02:53.4]} 6... c6 {[%clk 0:02:30.6]} 7.
O-O {[%clk 0:02:49.7]} 7... h6 {[%clk 0:02:22.5]} 8. b4 {[%clk 0:02:43]} 8...
Bb6 {[%clk 0:02:19.3]} 9. d4 {[%clk 0:02:19.5]} 9... Nbd7 {[%clk 0:02:15.9]} 10.
h3 {[%clk 0:02:14.4]} 10... exd4 {[%clk 0:02:06]} 11. Nxd4 {[%clk 0:02:13.6]}
11... Ne5 {[%clk 0:02:06.7]} 12. Bb3 {[%clk 0:02:09.7]} 12... g5 {[%clk
0:01:57.3]} 13. Be3 {[%clk 0:01:43.3]} 13... g4 {[%clk 0:01:53.8]} 14. h4 {[%clk
0:01:42.9]} 14... Nh5 {[%clk 0:01:40]} 15. g3 {[%clk 0:01:23.9]} 15... Qf6
{[%clk 0:01:39.9]} 16. Nce2 {[%clk 0:00:55.9]} 16... Qg6 {[%clk 0:01:19.8]} 17.
Nf5 {[%clk 0:00:37.1]} 17... Bxf5 {[%clk 0:01:12.5]} 18. exf5 {[%clk 0:00:36.6]}
18... Qf6 {[%clk 0:01:07.5]} 19. Bxb6 {[%clk 0:00:29.4]} 19... axb6 {[%clk
0:01:08.4]} 20. Nd4 {[%clk 0:00:28.7]} 20... O-O {[%clk 0:01:00.9]} 21. c3
{[%clk 0:00:17.3]} 21... Rfe8 {[%clk 0:00:57.6]} 22. Bc2 {[%clk 0:00:06.4]}
22... d5 {[%clk 0:00:53.1]} 23. Kg2 {[%clk 0:00:05.9]} 23... Rad8 {[%clk
0:00:51.4]} 24. a4 {[%clk 0:00:03.4]} 24... c5 {[%clk 0:00:51.5]} 25. Nb5 {[%clk
0:00:02.9]} 25... Qc6 {[%clk 0:00:50.3]} 26. Kh2 {[%clk 0:00:01.8]} 26... Nf3+
{[%clk 0:00:49.5]} 27. Kh1 {[%clk 0:00:02.2]} 27... d4 {[%clk 0:00:48.8]} 28.
Na7 {[%clk 0:00:02.7]} 28... Qd5 {[%clk 0:00:46.9]} 29. c4 {[%clk 0:00:03.3]}
29... Qxc4 {[%clk 0:00:35.4]} 30. Bb3 {[%clk 0:00:03.6]} 30... Qe2 {[%clk
0:00:36]} 31. Qxe2 {[%clk 0:00:03.5]} 31... Rxe2 {[%clk 0:00:36.9]} 32. Bd1
{[%clk 0:00:03.6]} 32... d3 {[%clk 0:00:36.8]} 33. bxc5 {[%clk 0:00:03.3]} 33...
bxc5 {[%clk 0:00:37]} 34. Nb5 {[%clk 0:00:03.8]} 34... Nxg3+ {[%clk 0:00:34.2]}
35. Kg2 {[%clk 0:00:03.1]} 35... Nxf1 {[%clk 0:00:34.7]} 36. Kxf1 {[%clk
0:00:03.6]} 36... Re1+ {[%clk 0:00:34.9]} 37. Kg2 {[%clk 0:00:03.9]} 37... Rg1#
{[%clk 0:00:34.6]} 0-1

[Event "Early-Titled-Tuesday-Blitz-April-23-2024"]
[Site "Chess.com"]
[Date "2024.04.23"]
[Round "4"]
[White "KanalSzachowy"]
[Black "MKlose11"]
[Result "1-0"]
[WhiteElo "2425"]
[BlackElo "2598"]
[TimeControl "180+1"]
[EndTime "8:39:33 PDT"]
[Termination "KanalSzachowy won by resignation"]

1. e4 {[%clk 0:03:00.9]} 1... e6 {[%clk 0:02:59.2]} 2. Nf3 {[%clk 0:02:59.1]}
2... d5 {[%clk 0:03:00.1]} 3. e5 {[%clk 0:02:59]} 3... c5 {[%clk 0:03:00.1]} 4.
g3 {[%clk 0:02:59.5]} 4... Nc6 {[%clk 0:02:58.5]} 5. Bg2 {[%clk 0:02:59.5]} 5...
Qc7 {[%clk 0:02:58.1]} 6. O-O {[%clk 0:02:59.3]} 6... Nxe5 {[%clk 0:02:56.6]} 7.
Nxe5 {[%clk 0:02:58.7]} 7... Qxe5 {[%clk 0:02:57.5]} 8. Re1 {[%clk 0:02:59.2]}
8... Qd6 {[%clk 0:02:57.8]} 9. d4 {[%clk 0:02:58.7]} 9... Nf6 {[%clk 0:02:56]}
10. Bf4 {[%clk 0:02:57.8]} 10... Qb6 {[%clk 0:02:54.7]} 11. dxc5 {[%clk
0:02:56.8]} 11... Bxc5 {[%clk 0:02:54.2]} 12. Qd2 {[%clk 0:02:44.2]} 12... O-O
{[%clk 0:02:33.1]} 13. Nc3 {[%clk 0:02:40.1]} 13... Bd7 {[%clk 0:02:23.8]} 14.
a3 {[%clk 0:02:39.2]} 14... Rac8 {[%clk 0:02:22.1]} 15. h3 {[%clk 0:02:12.9]}
15... Qxb2 {[%clk 0:02:08.7]} 16. Be5 {[%clk 0:02:09.4]} 16... Qb6 {[%clk
0:02:01]} 17. Rab1 {[%clk 0:02:07.4]} 17... Qc6 {[%clk 0:01:58.2]} 18. Bxf6
{[%clk 0:02:04.7]} 18... gxf6 {[%clk 0:01:58]} 19. Ne2 {[%clk 0:01:59.8]} 19...
Bd6 {[%clk 0:01:50]} 20. Qh6 {[%clk 0:01:59.8]} 20... Qxc2 {[%clk 0:01:46.3]}
21. Rxb7 {[%clk 0:01:59.1]} 21... Bc6 {[%clk 0:01:45.7]} 22. Rxa7 {[%clk
0:01:57.4]} 22... Qg6 {[%clk 0:01:45.7]} 23. Qd2 {[%clk 0:01:50.9]} 23... Ra8
{[%clk 0:01:43.2]} 24. Rxa8 {[%clk 0:01:44.8]} 24... Rxa8 {[%clk 0:01:42.7]} 25.
Rc1 {[%clk 0:01:40.3]} 25... Bb5 {[%clk 0:01:36.7]} 26. Bxd5 {[%clk 0:01:36.3]}
26... Rxa3 {[%clk 0:01:25.6]} 27. Bc4 {[%clk 0:01:33]} 27... Bxc4 {[%clk
0:00:58.3]} 28. Qxd6 {[%clk 0:01:32.5]} 28... Qd3 {[%clk 0:00:58.5]} 29. Qe7
{[%clk 0:01:16.6]} 29... Ra2 {[%clk 0:00:38.3]} 30. Qxf6 {[%clk 0:01:13.4]}
30... Rxe2 {[%clk 0:00:32]} 31. Qg5+ {[%clk 0:01:13]} 31... Kf8 {[%clk
0:00:09.5]} 32. Qc5+ {[%clk 0:01:12.5]} 32... Kg7 {[%clk 0:00:08.1]} 33. Rxc4
{[%clk 0:01:12]} 33... h6 {[%clk 0:00:02]} 34. Rg4+ {[%clk 0:01:07.2]} 34... Kh7
{[%clk 0:00:01.8]} 35. Qc1 {[%clk 0:00:49.5]} 35... Qd2 {[%clk 0:00:01.4]} 36.
Qb1+ {[%clk 0:00:47.8]} 36... Qc2 {[%clk 0:00:01.5]} 37. Qa1 {[%clk 0:00:45]}
37... Rxf2 {[%clk 0:00:01.4]} 1-0

[Event "Early-Titled-Tuesday-Blitz-April-23-2024"]
[Site "Chess.com"]
[Date "2024.04.23"]
[Round "4"]
[White "Moultino06"]
[Black "Orest_Vovk"]
[Result "1-0"]
[WhiteElo "2754"]
[BlackElo "2546"]
[TimeControl "180+1"]
[EndTime "8:39:34 PDT"]
[Termination "Moultino06 won by resignation"]

1. e4 {[%clk 0:02:23.4]} 1... g5 {[%clk 0:02:39.7]} 2. d4 {[%clk 0:02:10.2]}
2... g4 {[%clk 0:02:37.4]} 3. Qxg4 {[%clk 0:02:06.3]} 3... d5 {[%clk 0:02:36.7]}
4. Qh4 {[%clk 0:02:06.3]} 4... dxe4 {[%clk 0:02:36.7]} 5. Qxe4 {[%clk
0:02:07.2]} 5... Nf6 {[%clk 0:02:36.8]} 6. Qd3 {[%clk 0:02:00.8]} 6... Nc6
{[%clk 0:02:36.3]} 7. Nf3 {[%clk 0:02:00.9]} 7... Bg4 {[%clk 0:02:36]} 8. c3
{[%clk 0:02:00.8]} 8... Qd5 {[%clk 0:02:35.6]} 9. Be2 {[%clk 0:02:00.4]} 9...
O-O-O {[%clk 0:02:35.4]} 10. h3 {[%clk 0:01:52.8]} 10... Bf5 {[%clk 0:02:33.3]}
11. Qb5 {[%clk 0:01:47.5]} 11... Rg8 {[%clk 0:02:28.2]} 12. Qxd5 {[%clk
0:01:45.1]} 12... Nxd5 {[%clk 0:02:28.1]} 13. g3 {[%clk 0:01:39.6]} 13... f6
{[%clk 0:02:22.9]} 14. Nh4 {[%clk 0:01:29.7]} 14... Be4 {[%clk 0:02:19.7]} 15.
Bf3 {[%clk 0:01:27.2]} 15... Bxf3 {[%clk 0:02:03.3]} 16. Nxf3 {[%clk 0:01:28.1]}
16... e5 {[%clk 0:02:03.7]} 17. dxe5 {[%clk 0:01:27.4]} 17... fxe5 {[%clk
0:02:02.4]} 18. Nbd2 {[%clk 0:01:17.2]} 18... Bc5 {[%clk 0:01:37.8]} 19. Ne4
{[%clk 0:01:13]} 19... Rdf8 {[%clk 0:01:26.1]} 20. Ke2 {[%clk 0:01:08]} 20...
Bb6 {[%clk 0:01:21.8]} 21. Bh6 {[%clk 0:01:05.5]} 21... Rf7 {[%clk 0:01:16.4]}
22. Rad1 {[%clk 0:01:05.4]} 22... Nf6 {[%clk 0:01:06]} 23. Nfg5 {[%clk 0:00:54]}
23... Nxe4 {[%clk 0:01:01]} 24. Nxe4 {[%clk 0:00:54.9]} 24... Ne7 {[%clk
0:00:52.1]} 25. Bg5 {[%clk 0:00:51.6]} 25... Rxg5 {[%clk 0:00:38.5]} 26. Nxg5
{[%clk 0:00:52.5]} 26... Rxf2+ {[%clk 0:00:38.1]} 27. Kd3 {[%clk 0:00:53.4]}
27... h6 {[%clk 0:00:35.8]} 28. Ne4 {[%clk 0:00:44.8]} 28... Rxb2 {[%clk
0:00:35.5]} 29. Rhf1 {[%clk 0:00:41.6]} 29... Rxa2 {[%clk 0:00:30.1]} 30. Kc4
{[%clk 0:00:40]} 30... Ng6 {[%clk 0:00:19.8]} 31. Kb3 {[%clk 0:00:39.1]} 31...
Re2 {[%clk 0:00:18.4]} 32. Rf6 {[%clk 0:00:36.5]} 32... Rxe4 {[%clk 0:00:15.9]}
33. Rxg6 {[%clk 0:00:37.1]} 33... c6 {[%clk 0:00:16.3]} 34. Rxh6 {[%clk
0:00:35.1]} 34... Re3 {[%clk 0:00:15.2]} 35. Rh8+ {[%clk 0:00:35.1]} 35... Kc7
{[%clk 0:00:15.1]} 36. Rh7+ {[%clk 0:00:35.5]} 36... Kc8 {[%clk 0:00:15]} 37.
Rf1 {[%clk 0:00:36.1]} 37... Bc5 {[%clk 0:00:14.2]} 38. Rff7 {[%clk 0:00:35]}
38... b5 {[%clk 0:00:09.5]} 39. Rh8+ {[%clk 0:00:35.2]} 1-0

[Event "Early-Titled-Tuesday-Blitz-April-23-2024"]
[Site "Chess.com"]
[Date "2024.04.23"]
[Round "4"]
[White "tetrix83"]
[Black "Road2GM3000"]
[Result "1-0"]
[WhiteElo "2626"]
[BlackElo "2421"]
[TimeControl "180+1"]
[EndTime "8:39:36 PDT"]
[Termination "tetrix83 won by resignation"]

1. e4 {[%clk 0:03:00.9]} 1... c5 {[%clk 0:02:31.3]} 2. Nf3 {[%clk 0:03:00.4]}
2... d6 {[%clk 0:02:31.2]} 3. Bc4 {[%clk 0:02:58.6]} 3... Nf6 {[%clk 0:02:27]}
4. Qe2 {[%clk 0:02:56.2]} 4... e6 {[%clk 0:02:27.1]} 5. O-O {[%clk 0:02:55.7]}
5... Be7 {[%clk 0:02:27.4]} 6. Bb3 {[%clk 0:02:50.8]} 6... O-O {[%clk
0:02:27.6]} 7. c3 {[%clk 0:02:51.2]} 7... Nc6 {[%clk 0:02:20.9]} 8. d3 {[%clk
0:02:46.9]} 8... b6 {[%clk 0:02:17.3]} 9. Bf4 {[%clk 0:02:43.3]} 9... e5 {[%clk
0:02:04.4]} 10. Bg5 {[%clk 0:02:40.3]} 10... Be6 {[%clk 0:02:04.6]} 11. Nbd2
{[%clk 0:02:39.2]} 11... h6 {[%clk 0:02:01.1]} 12. Bxf6 {[%clk 0:02:33.5]} 12...
Bxf6 {[%clk 0:02:01.2]} 13. Nc4 {[%clk 0:02:30.1]} 13... b5 {[%clk 0:01:45.1]}
14. Ne3 {[%clk 0:02:30.1]} 14... Na5 {[%clk 0:01:40]} 15. Bd5 {[%clk 0:02:27.3]}
15... Rc8 {[%clk 0:01:38]} 16. Rfc1 {[%clk 0:02:24.9]} 16... c4 {[%clk
0:01:26.6]} 17. dxc4 {[%clk 0:02:08.8]} 17... Nxc4 {[%clk 0:01:26.6]} 18. Bxc4
{[%clk 0:02:03.9]} 18... bxc4 {[%clk 0:01:16.2]} 19. Rd1 {[%clk 0:02:02.5]}
19... Qb6 {[%clk 0:01:14.7]} 20. Rd2 {[%clk 0:02:02.3]} 20... Be7 {[%clk
0:01:07.2]} 21. Nd5 {[%clk 0:01:58.6]} 21... Bxd5 {[%clk 0:01:07]} 22. Rxd5
{[%clk 0:01:58.3]} 22... Rb8 {[%clk 0:01:06.8]} 23. Rd2 {[%clk 0:01:42.2]} 23...
Rb7 {[%clk 0:01:01]} 24. Qxc4 {[%clk 0:01:34]} 24... Rfb8 {[%clk 0:00:59.1]} 25.
g3 {[%clk 0:01:04.6]} 25... Qa5 {[%clk 0:00:58.7]} 26. Rd5 {[%clk 0:00:58.5]}
26... Qd8 {[%clk 0:00:54]} 27. b3 {[%clk 0:00:58.2]} 27... Rc8 {[%clk
0:00:52.6]} 28. Qd3 {[%clk 0:00:57.2]} 28... Qb6 {[%clk 0:00:43.4]} 29. c4
{[%clk 0:00:53]} 29... a5 {[%clk 0:00:43.3]} 30. Rb5 {[%clk 0:00:50.9]} 30...
Qa7 {[%clk 0:00:41.1]} 31. a4 {[%clk 0:00:39.7]} 31... Rxb5 {[%clk 0:00:34.6]}
32. axb5 {[%clk 0:00:39]} 32... Qb6 {[%clk 0:00:33.1]} 33. Kg2 {[%clk
0:00:38.8]} 33... Bd8 {[%clk 0:00:33.5]} 34. Ne1 {[%clk 0:00:36]} 34... Qc5
{[%clk 0:00:28.7]} 35. Qe3 {[%clk 0:00:34.1]} 35... Qb4 {[%clk 0:00:24.2]} 36.
Nc2 {[%clk 0:00:30.2]} 36... Qc5 {[%clk 0:00:19.6]} 37. Qxc5 {[%clk 0:00:28.9]}
37... dxc5 {[%clk 0:00:20.5]} 38. Rd1 {[%clk 0:00:28.4]} 38... Bc7 {[%clk
0:00:20.1]} 39. Ne3 {[%clk 0:00:28]} 39... Rd8 {[%clk 0:00:19.1]} 40. Rxd8+
{[%clk 0:00:27.5]} 40... Bxd8 {[%clk 0:00:20]} 41. Nd5 {[%clk 0:00:26.8]} 41...
Kf8 {[%clk 0:00:20.6]} 42. b6 {[%clk 0:00:22.3]} 42... Ke8 {[%clk 0:00:21.2]}
43. b7 {[%clk 0:00:22.3]} 1-0

[Event "Early-Titled-Tuesday-Blitz-April-23-2024"]
[Site "Chess.com"]
[Date "2024.04.23"]
[Round "4"]
[White "michaelq2d5"]
[Black "bangchess21"]
[Result "1-0"]
[WhiteElo "2936"]
[BlackElo "2786"]
[TimeControl "180+1"]
[EndTime "8:39:40 PDT"]
[Termination "michaelq2d5 won by checkmate"]

1. d4 {[%clk 0:03:00.9]} 1... g6 {[%clk 0:03:00.5]} 2. c4 {[%clk 0:03:01.2]}
2... Bg7 {[%clk 0:03:01.2]} 3. Nc3 {[%clk 0:03:02]} 3... d6 {[%clk 0:03:01.4]}
4. e4 {[%clk 0:03:02.3]} 4... b6 {[%clk 0:03:00]} 5. Nf3 {[%clk 0:03:02.4]} 5...
Bb7 {[%clk 0:03:00.7]} 6. Be2 {[%clk 0:03:03.2]} 6... Nd7 {[%clk 0:03:00.2]} 7.
O-O {[%clk 0:03:03.5]} 7... e6 {[%clk 0:03:00.3]} 8. Be3 {[%clk 0:03:03]} 8...
h6 {[%clk 0:02:59.8]} 9. Qd2 {[%clk 0:03:01.7]} 9... Ne7 {[%clk 0:03:00]} 10. b4
{[%clk 0:02:55.5]} 10... f5 {[%clk 0:02:50.8]} 11. exf5 {[%clk 0:02:50.2]} 11...
Nxf5 {[%clk 0:02:49.3]} 12. Rae1 {[%clk 0:02:47.3]} 12... O-O {[%clk 0:02:45.9]}
13. d5 {[%clk 0:02:41.4]} 13... e5 {[%clk 0:02:40.6]} 14. Bd3 {[%clk 0:02:41.8]}
14... Nf6 {[%clk 0:02:35.7]} 15. Bxf5 {[%clk 0:02:36.4]} 15... gxf5 {[%clk
0:02:36.1]} 16. Bxh6 {[%clk 0:02:37]} 16... f4 {[%clk 0:02:34.7]} 17. Bg5 {[%clk
0:02:32.6]} 17... Qe8 {[%clk 0:02:32.1]} 18. Bxf4 {[%clk 0:02:18.4]} 18... Qg6
{[%clk 0:02:20.3]} 19. Bg3 {[%clk 0:02:14.4]} 19... Qg4 {[%clk 0:02:20.4]} 20.
Qe2 {[%clk 0:02:12.7]} 20... Ba6 {[%clk 0:02:17.5]} 21. Nd2 {[%clk 0:02:11.5]}
21... Qd4 {[%clk 0:02:16]} 22. Rc1 {[%clk 0:01:38.3]} 22... Bh6 {[%clk
0:02:15.8]} 23. Rfd1 {[%clk 0:01:38.7]} 23... Bxd2 {[%clk 0:02:04.3]} 24. Rxd2
{[%clk 0:01:38.1]} 24... Qxc4 {[%clk 0:02:04.3]} 25. Qxc4 {[%clk 0:01:38.3]}
25... Bxc4 {[%clk 0:02:04.4]} 26. Bh4 {[%clk 0:01:30]} 26... Nd7 {[%clk
0:01:52.2]} 27. a4 {[%clk 0:01:08.7]} 27... a6 {[%clk 0:01:44.3]} 28. f3 {[%clk
0:01:01.7]} 28... b5 {[%clk 0:01:42.6]} 29. a5 {[%clk 0:01:02]} 29... Kg7 {[%clk
0:01:34.8]} 30. Ne4 {[%clk 0:00:59.1]} 30... Kg6 {[%clk 0:01:23]} 31. Rdc2
{[%clk 0:00:48.6]} 31... Rf7 {[%clk 0:01:20.6]} 32. Ng5 {[%clk 0:00:40.2]} 32...
Rf4 {[%clk 0:01:13.7]} 33. g3 {[%clk 0:00:40.6]} 33... Rd4 {[%clk 0:00:57.6]}
34. Ne6 {[%clk 0:00:40.1]} 34... Rd3 {[%clk 0:00:58.3]} 35. Rc3 {[%clk
0:00:37.3]} 35... Rd2 {[%clk 0:00:51.2]} 36. Nxc7 {[%clk 0:00:37.5]} 36... Ra7
{[%clk 0:00:51.6]} 37. Ne6 {[%clk 0:00:37.6]} 37... Bxd5 {[%clk 0:00:49.3]} 38.
Ng5 {[%clk 0:00:28.7]} 38... Bc4 {[%clk 0:00:49.8]} 39. Ne4 {[%clk 0:00:28.9]}
39... Rb2 {[%clk 0:00:45.1]} 40. Nxd6 {[%clk 0:00:28.6]} 40... Be6 {[%clk
0:00:41]} 41. Rc6 {[%clk 0:00:26.6]} 41... Rxb4 {[%clk 0:00:38.4]} 42. Nc8
{[%clk 0:00:25.6]} 42... Ra8 {[%clk 0:00:30.2]} 43. Rxe6+ {[%clk 0:00:25.9]}
43... Kf5 {[%clk 0:00:30.9]} 44. Rd6 {[%clk 0:00:24.5]} 44... Rc4 {[%clk
0:00:27.4]} 45. Ne7# {[%clk 0:00:24.5]} 1-0